[Event "Late-Titled-Tuesday-Blitz-April-02-2024"]
[Site "Chess.com"]
[Date "2024.04.02"]
[Round "2"]
[White "TheMagician"]
[Black "chucksterf10"]
[Result "0-1"]
[WhiteElo "2300"]
[BlackElo "2654"]
[TimeControl "180+1"]
[EndTime "14:18:24 PDT"]
[Termination "chucksterf10 won on time"]

1. e4 {[%clk 0:02:54.3]} 1... Nc6 {[%clk 0:02:59.6]} 2. Nf3 {[%clk 0:02:53.6]}
2... d5 {[%clk 0:02:59.4]} 3. exd5 {[%clk 0:02:53.8]} 3... Qxd5 {[%clk
0:02:59.5]} 4. Nc3 {[%clk 0:02:52.3]} 4... Qa5 {[%clk 0:03:00]} 5. Bb5 {[%clk
0:02:50.5]} 5... Bd7 {[%clk 0:03:00]} 6. O-O {[%clk 0:02:47.4]} 6... a6 {[%clk
0:03:00.3]} 7. Bxc6 {[%clk 0:02:46.8]} 7... Bxc6 {[%clk 0:03:00.7]} 8. Nd4
{[%clk 0:02:46]} 8... Bd7 {[%clk 0:02:56.5]} 9. Re1 {[%clk 0:02:39.8]} 9... Nf6
{[%clk 0:02:55.4]} 10. d3 {[%clk 0:02:39.6]} 10... e6 {[%clk 0:02:54.1]} 11. Bd2
{[%clk 0:02:26.5]} 11... Qh5 {[%clk 0:02:39.4]} 12. Ne4 {[%clk 0:02:19.4]} 12...
Qxd1 {[%clk 0:02:34.7]} 13. Nxf6+ {[%clk 0:02:18.7]} 13... gxf6 {[%clk
0:02:35.6]} 14. Raxd1 {[%clk 0:02:18.6]} 14... Bc5 {[%clk 0:02:33.4]} 15. Bc3
{[%clk 0:02:14.3]} 15... O-O-O {[%clk 0:02:32.6]} 16. Nb3 {[%clk 0:02:11.2]}
16... Be7 {[%clk 0:02:32.7]} 17. Re3 {[%clk 0:02:09]} 17... Rhg8 {[%clk
0:02:27.2]} 18. Rf3 {[%clk 0:02:08]} 18... f5 {[%clk 0:02:23.4]} 19. Re1 {[%clk
0:02:05.4]} 19... Bc6 {[%clk 0:02:18.8]} 20. Rg3 {[%clk 0:02:05.4]} 20... Bd6
{[%clk 0:02:17.2]} 21. Rxg8 {[%clk 0:02:04.7]} 21... Rxg8 {[%clk 0:02:18.1]} 22.
g3 {[%clk 0:02:03.2]} 22... h5 {[%clk 0:02:17.7]} 23. Be5 {[%clk 0:02:02.4]}
23... h4 {[%clk 0:02:12.4]} 24. Nd4 {[%clk 0:01:57.8]} 24... Bd7 {[%clk
0:02:05.5]} 25. Bxd6 {[%clk 0:01:42.3]} 25... cxd6 {[%clk 0:02:06.4]} 26. Kf1
{[%clk 0:01:33.9]} 26... Rg4 {[%clk 0:02:01]} 27. Nf3 {[%clk 0:01:24.5]} 27...
hxg3 {[%clk 0:01:58.8]} 28. fxg3 {[%clk 0:01:24.7]} 28... Bc6 {[%clk 0:01:35.7]}
29. Kf2 {[%clk 0:01:23.1]} 29... f4 {[%clk 0:01:27.5]} 30. c3 {[%clk 0:01:19.3]}
30... fxg3+ {[%clk 0:01:21]} 31. hxg3 {[%clk 0:01:19.4]} 31... e5 {[%clk
0:01:15.7]} 32. d4 {[%clk 0:00:49.6]} 32... e4 {[%clk 0:01:09]} 33. Nh2 {[%clk
0:00:48.9]} 33... Rg6 {[%clk 0:01:07.9]} 34. Nf1 {[%clk 0:00:45]} 34... Rf6+
{[%clk 0:01:07.1]} 35. Kg1 {[%clk 0:00:41.6]} 35... d5 {[%clk 0:01:03.4]} 36.
Ne3 {[%clk 0:00:40.1]} 36... Rf3 {[%clk 0:01:01.5]} 37. Kg2 {[%clk 0:00:34.4]}
37... Kd7 {[%clk 0:01:01]} 38. b3 {[%clk 0:00:34.2]} 38... Ke6 {[%clk
0:00:54.2]} 39. c4 {[%clk 0:00:34]} 39... f5 {[%clk 0:00:52.4]} 40. Re2 {[%clk
0:00:19.2]} 40... a5 {[%clk 0:00:49.5]} 41. Re1 {[%clk 0:00:18.5]} 41... b6
{[%clk 0:00:45]} 42. Re2 {[%clk 0:00:18.5]} 42... f4 {[%clk 0:00:39.5]} 43. gxf4
{[%clk 0:00:18]} 43... Rxf4 {[%clk 0:00:40.4]} 44. Rf2 {[%clk 0:00:17.4]} 44...
Rh4 {[%clk 0:00:36.8]} 45. Kg3 {[%clk 0:00:17.7]} 45... Rh6 {[%clk 0:00:32.5]}
46. Rf5 {[%clk 0:00:16.4]} 46... Bb7 {[%clk 0:00:11.2]} 47. cxd5+ {[%clk
0:00:15.3]} 47... Kd6 {[%clk 0:00:10.7]} 48. Rg5 {[%clk 0:00:09.6]} 48... Rf6
{[%clk 0:00:08.8]} 49. Nc4+ {[%clk 0:00:08.8]} 49... Kc7 {[%clk 0:00:05.6]} 50.
d6+ {[%clk 0:00:08.2]} 50... Kc6 {[%clk 0:00:04]} 51. d5+ {[%clk 0:00:08.5]}
51... Kc5 {[%clk 0:00:02.4]} 52. d7 {[%clk 0:00:08.9]} 52... Rf8 {[%clk
0:00:02.4]} 53. Re5 {[%clk 0:00:08.4]} 53... Rd8 {[%clk 0:00:02.6]} 54. Rxe4
{[%clk 0:00:06.1]} 54... Bxd5 {[%clk 0:00:02.5]} 55. Re5 {[%clk 0:00:06.2]}
55... Kd4 {[%clk 0:00:02.6]} 56. Re7 {[%clk 0:00:04.5]} 56... Bxc4 {[%clk
0:00:03]} 57. bxc4 {[%clk 0:00:03.6]} 57... Kxc4 {[%clk 0:00:03.9]} 58. Kf4
{[%clk 0:00:03.9]} 58... Kd5 {[%clk 0:00:04.3]} 59. a4 {[%clk 0:00:01.8]} 59...
Kd6 {[%clk 0:00:04.4]} 60. Re5 {[%clk 0:00:01.7]} 60... Rxd7 {[%clk 0:00:04.5]}
61. Rb5 {[%clk 0:00:01.6]} 61... Kc6 {[%clk 0:00:04.4]} 62. Ke4 {[%clk
0:00:01.7]} 62... Rd1 {[%clk 0:00:05.1]} 0-1

[Event "Late-Titled-Tuesday-Blitz-April-02-2024"]
[Site "Chess.com"]
[Date "2024.04.02"]
[Round "2"]
[White "GMKrikor"]
[Black "AmanteDeMoi"]
[Result "1/2-1/2"]
[WhiteElo "2878"]
[BlackElo "2587"]
[TimeControl "180+1"]
[EndTime "14:18:25 PDT"]
[Termination "Game drawn by repetition"]

1. Nf3 {[%clk 0:03:00.9]} 1... g6 {[%clk 0:02:59]} 2. e4 {[%clk 0:02:57.4]} 2...
Bg7 {[%clk 0:02:58.8]} 3. d4 {[%clk 0:02:57.9]} 3... d6 {[%clk 0:02:58.4]} 4. c4
{[%clk 0:02:54.9]} 4... e5 {[%clk 0:02:57.3]} 5. Nc3 {[%clk 0:02:51.1]} 5... Nc6
{[%clk 0:02:57]} 6. dxe5 {[%clk 0:02:26.6]} 6... Nxe5 {[%clk 0:02:57.9]} 7. Be2
{[%clk 0:02:25.7]} 7... Nxf3+ {[%clk 0:02:49.4]} 8. Bxf3 {[%clk 0:02:25.7]} 8...
Nf6 {[%clk 0:02:43.4]} 9. O-O {[%clk 0:02:25]} 9... O-O {[%clk 0:02:43.4]} 10.
Re1 {[%clk 0:02:24]} 10... Be6 {[%clk 0:02:42.4]} 11. Be2 {[%clk 0:02:11.5]}
11... Re8 {[%clk 0:02:31.8]} 12. Bg5 {[%clk 0:02:02.7]} 12... Qd7 {[%clk
0:02:28.6]} 13. Qd2 {[%clk 0:01:58.4]} 13... Qc6 {[%clk 0:02:19.8]} 14. Qd3
{[%clk 0:01:19.8]} 14... Nd7 {[%clk 0:02:02.2]} 15. Nd5 {[%clk 0:01:16.7]} 15...
Bxb2 {[%clk 0:01:36.1]} 16. Rab1 {[%clk 0:01:11.5]} 16... Bg7 {[%clk 0:01:14.8]}
17. Qg3 {[%clk 0:00:57]} 17... b6 {[%clk 0:01:01.9]} 18. h4 {[%clk 0:00:55.5]}
18... Bxd5 {[%clk 0:00:55.5]} 19. cxd5 {[%clk 0:00:52.1]} 19... Qc3 {[%clk
0:00:53.1]} 20. Qxc3 {[%clk 0:00:32.2]} 20... Bxc3 {[%clk 0:00:54]} 21. Rec1
{[%clk 0:00:32.9]} 21... Bf6 {[%clk 0:00:42.5]} 22. Bb5 {[%clk 0:00:22.4]} 22...
Bxg5 {[%clk 0:00:39.7]} 23. hxg5 {[%clk 0:00:23.3]} 23... Nc5 {[%clk 0:00:30.7]}
24. Bxe8 {[%clk 0:00:22.5]} 24... Rxe8 {[%clk 0:00:31.6]} 25. f3 {[%clk
0:00:23.1]} 25... Re5 {[%clk 0:00:32.1]} 26. a4 {[%clk 0:00:18.6]} 26... a5
{[%clk 0:00:30.8]} 27. Rc4 {[%clk 0:00:17.8]} 27... Rxg5 {[%clk 0:00:30.7]} 28.
Kf2 {[%clk 0:00:17.4]} 28... Re5 {[%clk 0:00:29.4]} 29. g4 {[%clk 0:00:15]}
29... h6 {[%clk 0:00:27.2]} 30. Ke3 {[%clk 0:00:13.1]} 30... g5 {[%clk
0:00:20.1]} 31. Rh1 {[%clk 0:00:11.9]} 31... Kg7 {[%clk 0:00:20.1]} 32. Kd4
{[%clk 0:00:11.4]} 32... Re7 {[%clk 0:00:16.8]} 33. Kc3 {[%clk 0:00:07.9]} 33...
Kg6 {[%clk 0:00:16.1]} 34. Rd4 {[%clk 0:00:06.1]} 34... f6 {[%clk 0:00:14.2]}
35. Ra1 {[%clk 0:00:05.3]} 35... Rh7 {[%clk 0:00:13]} 36. Rh1 {[%clk 0:00:05.3]}
36... h5 {[%clk 0:00:11.7]} 37. gxh5+ {[%clk 0:00:05.8]} 37... Rxh5 {[%clk
0:00:12.6]} 38. Rxh5 {[%clk 0:00:06.3]} 38... Kxh5 {[%clk 0:00:13.5]} 39. Kc4
{[%clk 0:00:07.2]} 39... Nxa4 {[%clk 0:00:11.4]} 40. Kb5 {[%clk 0:00:07.3]}
40... Nc3+ {[%clk 0:00:09.2]} 41. Kc6 {[%clk 0:00:07.5]} 41... b5 {[%clk
0:00:08.2]} 42. Kxc7 {[%clk 0:00:06.9]} 42... b4 {[%clk 0:00:08.6]} 43. Rc4
{[%clk 0:00:04.6]} 43... Nb5+ {[%clk 0:00:04.6]} 44. Kb6 {[%clk 0:00:04.1]}
44... b3 {[%clk 0:00:05.4]} 45. Rc1 {[%clk 0:00:01.8]} 45... Na3 {[%clk
0:00:05.8]} 46. Rh1+ {[%clk 0:00:01.7]} 46... Kg6 {[%clk 0:00:05.6]} 47. Kc6
{[%clk 0:00:02.6]} 47... b2 {[%clk 0:00:05.8]} 48. Kxd6 {[%clk 0:00:03]} 48...
b1=Q {[%clk 0:00:05.3]} 49. Rxb1 {[%clk 0:00:02.7]} 49... Nxb1 {[%clk
0:00:06.2]} 50. Kc5 {[%clk 0:00:03.2]} 50... a4 {[%clk 0:00:05.9]} 51. d6 {[%clk
0:00:03.6]} 51... a3 {[%clk 0:00:03.5]} 52. d7 {[%clk 0:00:03.9]} 52... a2
{[%clk 0:00:04.4]} 53. d8=Q {[%clk 0:00:04.6]} 53... a1=Q {[%clk 0:00:04.8]} 54.
Qe8+ {[%clk 0:00:04.1]} 54... Kg7 {[%clk 0:00:03.5]} 55. Qe7+ {[%clk 0:00:04.1]}
55... Kh6 {[%clk 0:00:04]} 56. Qf8+ {[%clk 0:00:02.7]} 56... Kg6 {[%clk
0:00:03.3]} 57. Qg8+ {[%clk 0:00:02.7]} 57... Kh6 {[%clk 0:00:03.3]} 58. Qh8+
{[%clk 0:00:03]} 58... Kg6 {[%clk 0:00:03.6]} 59. Qg8+ {[%clk 0:00:03.1]} 59...
Kh6 {[%clk 0:00:03.7]} 60. Qh8+ {[%clk 0:00:02.9]} 60... Kg6 {[%clk 0:00:04.1]}
61. Qg8+ {[%clk 0:00:03.5]} 1/2-1/2

[Event "Late-Titled-Tuesday-Blitz-April-02-2024"]
[Site "Chess.com"]
[Date "2024.04.02"]
[Round "2"]
[White "prochn"]
[Black "trriinu"]
[Result "1-0"]
[WhiteElo "2518"]
[BlackElo "2281"]
[TimeControl "180+1"]
[EndTime "14:18:37 PDT"]
[Termination "prochn won by resignation"]

1. d4 {[%clk 0:03:00.9]} 1... g6 {[%clk 0:02:58]} 2. c4 {[%clk 0:03:00.3]} 2...
Bg7 {[%clk 0:02:58.5]} 3. g3 {[%clk 0:03:00.7]} 3... d6 {[%clk 0:02:58.9]} 4.
Bg2 {[%clk 0:03:01]} 4... Nf6 {[%clk 0:02:59.5]} 5. Nf3 {[%clk 0:03:00.3]} 5...
c6 {[%clk 0:03:00]} 6. Nc3 {[%clk 0:03:00.1]} 6... O-O {[%clk 0:03:00.4]} 7. e4
{[%clk 0:02:57.3]} 7... Nbd7 {[%clk 0:02:59]} 8. O-O {[%clk 0:02:57.1]} 8... e5
{[%clk 0:02:53]} 9. h3 {[%clk 0:02:45.2]} 9... Qb6 {[%clk 0:02:50.4]} 10. d5
{[%clk 0:02:42.7]} 10... c5 {[%clk 0:02:43.3]} 11. Rb1 {[%clk 0:02:39.4]} 11...
a6 {[%clk 0:02:42.9]} 12. a3 {[%clk 0:02:37.3]} 12... Qc7 {[%clk 0:02:41.3]} 13.
Be3 {[%clk 0:02:11.9]} 13... Nh5 {[%clk 0:02:25.1]} 14. Nd2 {[%clk 0:02:07.2]}
14... Rb8 {[%clk 0:02:03.1]} 15. b4 {[%clk 0:02:02.7]} 15... b5 {[%clk
0:01:19.3]} 16. cxb5 {[%clk 0:02:01.1]} 16... cxb4 {[%clk 0:01:14]} 17. Na2
{[%clk 0:01:26.8]} 17... bxa3 {[%clk 0:01:13]} 18. Qa4 {[%clk 0:01:15.5]} 18...
axb5 {[%clk 0:00:53.3]} 19. Qxa3 {[%clk 0:01:15.2]} 19... Nc5 {[%clk 0:00:35.1]}
20. Rfc1 {[%clk 0:01:13.2]} 20... Bd7 {[%clk 0:00:20.4]} 21. Bxc5 {[%clk
0:01:01.3]} 21... dxc5 {[%clk 0:00:20.4]} 22. Rxc5 {[%clk 0:01:00.8]} 22... Qd6
{[%clk 0:00:19.5]} 23. Qc3 {[%clk 0:00:55.5]} 23... Ra8 {[%clk 0:00:16.6]} 24.
Nb4 {[%clk 0:00:54.5]} 24... Rfb8 {[%clk 0:00:14.4]} 25. Nc6 {[%clk 0:00:51.2]}
25... Rb6 {[%clk 0:00:13.5]} 26. Rbxb5 {[%clk 0:00:48.5]} 26... Rba6 {[%clk
0:00:06]} 27. Rb1 {[%clk 0:00:43.9]} 27... Bf8 {[%clk 0:00:06.2]} 28. Rc4 {[%clk
0:00:42.7]} 28... Ra3 {[%clk 0:00:05.1]} 29. Qc2 {[%clk 0:00:41.2]} 29... Ra2
{[%clk 0:00:04]} 30. Qc3 {[%clk 0:00:37.3]} 30... R8a6 {[%clk 0:00:04.1]} 31.
Nf3 {[%clk 0:00:34.5]} 31... Nf6 {[%clk 0:00:03.6]} 32. Nfxe5 {[%clk 0:00:32.3]}
32... Bxc6 {[%clk 0:00:03.5]} 33. Nxc6 {[%clk 0:00:31.3]} 33... Nd7 {[%clk
0:00:03.4]} 34. e5 {[%clk 0:00:30.6]} 34... Qa3 {[%clk 0:00:03.3]} 35. e6 {[%clk
0:00:26.4]} 35... Qxc3 {[%clk 0:00:02.7]} 36. Rxc3 {[%clk 0:00:26.1]} 36... Nf6
{[%clk 0:00:01.8]} 37. e7 {[%clk 0:00:24]} 37... Bxe7 {[%clk 0:00:02.1]} 38.
Nxe7+ {[%clk 0:00:23.9]} 38... Kg7 {[%clk 0:00:02.7]} 39. Rc6 {[%clk 0:00:18.8]}
39... R6a3 {[%clk 0:00:02.1]} 40. d6 {[%clk 0:00:17.6]} 40... Rd2 {[%clk
0:00:02.2]} 41. Nc8 {[%clk 0:00:12.9]} 41... Rad3 {[%clk 0:00:02.3]} 42. Rb7
{[%clk 0:00:10]} 42... Ne8 {[%clk 0:00:02.2]} 43. Rcc7 {[%clk 0:00:07.9]} 43...
Rd1+ {[%clk 0:00:02.1]} 44. Kh2 {[%clk 0:00:07.7]} 44... Nxd6 {[%clk 0:00:02.4]}
45. Nxd6 {[%clk 0:00:06.4]} 45... Rxd6 {[%clk 0:00:02.7]} 46. Rxf7+ {[%clk
0:00:06.7]} 46... Kg8 {[%clk 0:00:03]} 47. Rxh7 {[%clk 0:00:06.7]} 47... R1d2
{[%clk 0:00:02.9]} 48. Rhf7 {[%clk 0:00:06]} 48... Rd8 {[%clk 0:00:01.9]} 49.
Rf4 {[%clk 0:00:05.5]} 49... R2d6 {[%clk 0:00:02]} 50. h4 {[%clk 0:00:05.8]}
50... R8d7 {[%clk 0:00:01.9]} 51. Rxd7 {[%clk 0:00:05.3]} 51... Rxd7 {[%clk
0:00:02.2]} 52. Be4 {[%clk 0:00:05.9]} 52... Kg7 {[%clk 0:00:02.6]} 53. Kg2
{[%clk 0:00:06.2]} 53... Rd6 {[%clk 0:00:02.6]} 54. Rg4 {[%clk 0:00:06.7]} 54...
Kf7 {[%clk 0:00:02.6]} 55. Rxg6 {[%clk 0:00:06.4]} 55... Rd4 {[%clk 0:00:03.1]}
56. Bf5 {[%clk 0:00:05.4]} 56... Rd5 {[%clk 0:00:03.3]} 57. Rg5 {[%clk
0:00:06.1]} 57... Rd2 {[%clk 0:00:03.4]} 58. g4 {[%clk 0:00:05.5]} 58... Kf6
{[%clk 0:00:03.5]} 59. Rg6+ {[%clk 0:00:05.7]} 59... Kf7 {[%clk 0:00:04.1]} 60.
h5 {[%clk 0:00:05.7]} 60... Rd4 {[%clk 0:00:03.9]} 61. Kg3 {[%clk 0:00:06.1]}
61... Rb4 {[%clk 0:00:03.7]} 62. f3 {[%clk 0:00:06.6]} 62... Rb3 {[%clk
0:00:04.1]} 63. Ra6 {[%clk 0:00:06.8]} 63... Rb4 {[%clk 0:00:04.4]} 64. g5
{[%clk 0:00:07.1]} 64... Kg7 {[%clk 0:00:04.8]} 65. Ra7+ {[%clk 0:00:07.5]}
65... Kf8 {[%clk 0:00:05.3]} 66. h6 {[%clk 0:00:07.8]} 66... Rb5 {[%clk
0:00:05.7]} 67. Kg4 {[%clk 0:00:08]} 67... Rb4+ {[%clk 0:00:06]} 68. f4 {[%clk
0:00:08.3]} 1-0

[Event "Late-Titled-Tuesday-Blitz-April-02-2024"]
[Site "Chess.com"]
[Date "2024.04.02"]
[Round "2"]
[White "N_I_Chess"]
[Black "GoltsevDmitry2000"]
[Result "0-1"]
[WhiteElo "2387"]
[BlackElo "2804"]
[TimeControl "180+1"]
[EndTime "14:18:41 PDT"]
[Termination "GoltsevDmitry2000 won on time"]

1. d4 {[%clk 0:02:37.9]} 1... Nf6 {[%clk 0:02:56.9]} 2. c4 {[%clk 0:02:38.1]}
2... e6 {[%clk 0:02:56.9]} 3. Nc3 {[%clk 0:02:37.6]} 3... d5 {[%clk 0:02:56.8]}
4. cxd5 {[%clk 0:02:38.5]} 4... exd5 {[%clk 0:02:57.4]} 5. Bg5 {[%clk
0:02:33.7]} 5... c6 {[%clk 0:02:57.5]} 6. e3 {[%clk 0:02:28.4]} 6... Bf5 {[%clk
0:02:56.6]} 7. Bd3 {[%clk 0:02:28.6]} 7... Bg6 {[%clk 0:02:52.7]} 8. Nge2 {[%clk
0:02:27.9]} 8... Bd6 {[%clk 0:02:51.5]} 9. f3 {[%clk 0:02:13.3]} 9... h6 {[%clk
0:02:47.3]} 10. Bh4 {[%clk 0:02:12.6]} 10... Na6 {[%clk 0:02:23.4]} 11. Bxg6
{[%clk 0:01:57.3]} 11... fxg6 {[%clk 0:02:23.2]} 12. O-O {[%clk 0:01:52.4]}
12... O-O {[%clk 0:02:16.3]} 13. a3 {[%clk 0:01:36.4]} 13... Nc7 {[%clk
0:02:15.3]} 14. Kh1 {[%clk 0:01:32.5]} 14... g5 {[%clk 0:02:12.1]} 15. Bg3
{[%clk 0:01:28.3]} 15... Re8 {[%clk 0:02:07.8]} 16. Qd3 {[%clk 0:01:24.8]} 16...
Nh5 {[%clk 0:02:01.6]} 17. Bxd6 {[%clk 0:01:21.7]} 17... Qxd6 {[%clk 0:02:02.5]}
18. e4 {[%clk 0:01:20.4]} 18... Ne6 {[%clk 0:01:57]} 19. e5 {[%clk 0:01:17.7]}
19... Qe7 {[%clk 0:01:52.3]} 20. g3 {[%clk 0:01:14.9]} 20... Qf7 {[%clk
0:01:48.6]} 21. Rf2 {[%clk 0:01:08.8]} 21... Rf8 {[%clk 0:01:46.1]} 22. Raf1
{[%clk 0:01:05.9]} 22... Rad8 {[%clk 0:01:41.4]} 23. b4 {[%clk 0:01:04]} 23...
b6 {[%clk 0:01:40.3]} 24. f4 {[%clk 0:00:54]} 24... gxf4 {[%clk 0:01:40.1]} 25.
gxf4 {[%clk 0:00:54.9]} 25... Qf5 {[%clk 0:01:32.7]} 26. Qe3 {[%clk 0:00:36.4]}
26... c5 {[%clk 0:01:29.6]} 27. bxc5 {[%clk 0:00:35.2]} 27... bxc5 {[%clk
0:01:29.8]} 28. Nb5 {[%clk 0:00:32.1]} 28... Qg4 {[%clk 0:00:57.9]} 29. f5
{[%clk 0:00:18.1]} 29... cxd4 {[%clk 0:00:47.8]} 30. Nbxd4 {[%clk 0:00:17.2]}
30... Ng5 {[%clk 0:00:45]} 31. e6 {[%clk 0:00:14.5]} 31... Rde8 {[%clk 0:00:39]}
32. Nf4 {[%clk 0:00:10.9]} 32... Nf6 {[%clk 0:00:26]} 33. Ng6 {[%clk 0:00:07.3]}
33... Nfe4 {[%clk 0:00:15]} 34. Rg2 {[%clk 0:00:05.6]} 34... Qh5 {[%clk
0:00:15.3]} 35. Nxf8 {[%clk 0:00:05.4]} 35... Rxf8 {[%clk 0:00:16.2]} 36. Qe2
{[%clk 0:00:04.8]} 36... Qh4 {[%clk 0:00:10.7]} 37. Qg4 {[%clk 0:00:04.7]} 37...
Qxg4 {[%clk 0:00:07.7]} 38. Rxg4 {[%clk 0:00:05.6]} 38... Rc8 {[%clk 0:00:07.6]}
39. h4 {[%clk 0:00:05]} 39... Nh7 {[%clk 0:00:05.7]} 40. Nf3 {[%clk 0:00:04.1]}
40... Nhf6 {[%clk 0:00:05.1]} 41. Rg2 {[%clk 0:00:03.4]} 41... Rc3 {[%clk
0:00:05.5]} 42. Ne5 {[%clk 0:00:03.5]} 42... Kf8 {[%clk 0:00:03.5]} 43. Rfg1
{[%clk 0:00:03.7]} 43... Rh3+ {[%clk 0:00:02.6]} 44. Rh2 {[%clk 0:00:04]} 44...
Re3 {[%clk 0:00:03.5]} 45. Kg2 {[%clk 0:00:03.8]} 45... Re2+ {[%clk 0:00:03.1]}
46. Kh3 {[%clk 0:00:03.7]} 46... Nf2+ {[%clk 0:00:03.4]} 47. Rxf2 {[%clk
0:00:03.9]} 47... Rxf2 {[%clk 0:00:03.4]} 48. Ng6+ {[%clk 0:00:04.5]} 48... Ke8
{[%clk 0:00:03.9]} 49. Rb1 {[%clk 0:00:03.8]} 49... Kd8 {[%clk 0:00:02.7]} 50.
e7+ {[%clk 0:00:01.6]} 50... Kd7 {[%clk 0:00:03.3]} 51. Rb7+ {[%clk 0:00:02.2]}
51... Kd6 {[%clk 0:00:03.8]} 52. Rb8 {[%clk 0:00:02.9]} 52... Rxf5 {[%clk
0:00:03.4]} 53. e8=Q {[%clk 0:00:01.9]} 53... Nxe8 {[%clk 0:00:04.1]} 54. Rxe8
{[%clk 0:00:02.6]} 54... Rf3+ {[%clk 0:00:05]} 55. Kg4 {[%clk 0:00:03.2]} 55...
Rxa3 {[%clk 0:00:05.9]} 56. Rd8+ {[%clk 0:00:03.4]} 56... Kc5 {[%clk 0:00:05.5]}
57. Rg8 {[%clk 0:00:03.6]} 57... Ra4+ {[%clk 0:00:05.4]} 58. Kh5 {[%clk
0:00:03.9]} 58... d4 {[%clk 0:00:05.9]} 59. Rxg7 {[%clk 0:00:03.6]} 59... d3
{[%clk 0:00:06.4]} 60. Rd7 {[%clk 0:00:03.7]} 60... Rd4 {[%clk 0:00:06.5]} 61.
Rxd4 {[%clk 0:00:04.1]} 61... Kxd4 {[%clk 0:00:07.4]} 62. Kxh6 {[%clk
0:00:01.7]} 62... d2 {[%clk 0:00:07.6]} 63. h5 {[%clk 0:00:02.6]} 63... d1=Q
{[%clk 0:00:07.9]} 64. Nf8 {[%clk 0:00:02.7]} 64... Qf3 {[%clk 0:00:07.5]} 65.
Ng6 {[%clk 0:00:03.6]} 65... a5 {[%clk 0:00:07.2]} 66. Ne7 {[%clk 0:00:02.5]}
66... Qf6+ {[%clk 0:00:07]} 67. Ng6 {[%clk 0:00:01.6]} 67... a4 {[%clk
0:00:07.6]} 68. Kh7 {[%clk 0:00:02.4]} 68... a3 {[%clk 0:00:08.5]} 69. h6 {[%clk
0:00:03.3]} 69... a2 {[%clk 0:00:09]} 70. Ne7 {[%clk 0:00:02]} 70... a1=Q {[%clk
0:00:09]} 71. Kg8 {[%clk 0:00:02.5]} 71... Qa8+ {[%clk 0:00:08.9]} 0-1